bitfinex/quotes_ETHUSD_20230116
["timestamp","ask_amount","ask_price","bid_price","bid_amount"]
[1673893545382,0.08533992,1559.8,1559.7,47.41195829]
[1673893545630,0.08533992,1559.8,1559.7,45.70695829]
[1673893545825,0.08533992,1559.8,1559.7,38.93595829]
[1673893546136,0.08533992,1559.8,1559.7,38.93336781]
[1673893546529,0.08533992,1559.8,1559.7,38.10144499]
[1673893547581,0.08533992,1559.8,1559.7,28.64332952]
[1673893548743,1.12733992,1559.8,1559.7,22.23184952]
[1673893549161,1.12733992,1559.8,1559.7,19.23184952]
[1673893550229,0.08533992,1559.8,1559.7,19.23184952]
[1673893550669,1.12733992,1559.8,1559.7,22.23184952]
[1673893550880,0.08533992,1559.8,1559.7,22.23184952]
[1673893554751,1.12733992,1559.8,1559.7,22.23184952]
[1673893554965,1.12733992,1559.8,1559.7,19.23184952]
[1673893555174,2.84307126,1559.8,1559.7,19.23184952]
[1673893556214,3.32417126,1559.8,1559.7,19.23184952]
[1673893556837,2.28217126,1559.8,1559.7,19.23184952]
[1673893557047,2.57681817,1559.8,1559.7,19.23184952]
[1673893560442,2.09571817,1559.8,1559.7,19.23184952]
[1673893561250,6.80949132,1559.8,1559.4,7.37028693]
[1673893561503,0.95985076,1559.6,1559.5,0.83031745]
[1673893561710,2.40083713,1559.6,1559.5,0.83031745]
[1673893561931,3.63855884,1559.6,1559.5,0.83031745]
[1673893562119,4.5991593,1559.6,1559.5,0.83031745]
[1673893562333,5.55975217,1559.6,1559.5,0.83031745]
[1673893562739,4.1187658,1559.6,1559.5,0.83031745]
[1673893563493,5.55975217,1559.6,1559.5,0.83031745]
[1673893564249,4.1187658,1559.6,1559.5,7.24262745]
[1673893565707,7.91095971,1559.6,1559.5,0.83031745]
[1673893565907,22.88444374,1559.6,1559.5,0.83031745]
[1673893566118,22.88444374,1559.6,1559.5,0.82816917]
[1673893566119,34.3272484,1559.6,1559.5,0.82816917]
[1673893566340,31.9250848,1559.6,1559.5,0.82816917]
[1673893567158,34.3272484,1559.6,1559.5,0.82816917]
[1673893567581,31.9250848,1559.6,1559.5,0.82816917]
[1673893569677,34.3272484,1559.6,1559.5,0.82816917]
[1673893570006,31.9250848,1559.6,1559.5,0.82816917]
[1673893570775,33.36226088,1559.6,1559.5,0.82816917]
[1673893571175,33.84474045,1559.6,1559.5,0.82816917]
[1673893572543,35.75985808,1559.6,1559.5,0.82816917]
[1673893573888,38.01370737,1559.6,1559.5,0.82816917]
[1673893574505,39.49370737,1559.6,1558.9,30.22753207]
[1673893574869,22.18808,1559.0,1558.9,30.22753207]
[1673893575073,25.69086678,1559.0,1558.9,0.09753207]
[1673893575301,26.17216678,1559.0,1558.9,0.09753207]
[1673893575501,29.08506881,1559.0,1558.9,0.09753207]
[1673893578278,29.11223201,1559.0,1558.9,0.09753207]
[1673893581703,28.63093201,1559.0,1558.9,0.09753207]
[1673893581919,21.98657201,1559.0,1558.9,0.09753207]
[1673893582277,7.65468881,1559.0,1558.9,0.09753207]
[1673893582452,4.74178678,1559.0,1558.9,0.09753207]
[1673893584227,8.2167,1559.2,1558.9,7.54930207]
[1673893584442,1.468,1559.2,1558.9,13.96407207]
[1673893589116,1.46540179,1559.2,1558.9,13.96407207]
[1673893589321,1.476,1559.2,1558.9,17.06811928]
[1673893590865,1.476,1559.2,1558.9,19.06811928]
[1673893591604,1.476,1559.2,1558.9,17.06811928]
[1673893591972,4.74878678,1559.2,1558.9,16.03111928]
[1673893593187,4.74878678,1559.2,1558.9,18.03111928]
[1673893593712,4.74878678,1559.2,1558.9,24.44588928]
[1673893594294,3.27278678,1559.2,1558.9,24.44588928]
[1673893594755,3.27278678,1559.2,1558.9,22.44588928]
[1673893595494,3.27278678,1559.2,1558.9,12.92707207]
[1673893595818,3.27278678,1559.2,1558.9,21.34184207]
[1673893596333,3.27278678,1559.2,1558.9,19.34184207]
[1673893596949,3.27278678,1559.2,1558.9,19.29184207]
[1673893597548,4.2295041,1559.2,1558.9,6.46230207]
[1673893597761,4.2295041,1559.2,1558.9,0.04753207]
[1673893597762,10.10968719,1559.1,1558.9,0.04753207]
[1673893598927,11.06640451,1559.1,1558.9,0.04753207]
[1673893602883,12.50014421,1559.1,1558.9,0.04753207]
[1673893603024,4.2383415,1559.0,1558.9,0.04753207]
[1673893603239,7.18303449,1559.0,1558.9,0.04753207]
[1673893603480,5.26075167,1559.0,1558.9,0.04753207]
[1673893604658,7.18369815,1559.0,1558.9,0.04753207]
[1673893605281,5.19573326,1559.0,1558.9,0.04753207]
[1673893605491,1.92294648,1559.0,1558.9,0.04753207]
[1673893605701,0.95671732,1559.1,1558.9,12.87707207]
[1673893605941,0.95671732,1559.1,1558.9,19.29184207]
[1673893606107,1.92290514,1559.1,1558.9,19.29184207]
[1673893606315,0.95671732,1559.1,1558.9,22.01051228]
[1673893606898,2.39045702,1559.1,1558.9,22.01051228]
[1673893607092,2.39045702,1559.1,1558.9,21.96051228]
[1673893607093,0.95671732,1559.1,1558.9,21.96051228]
[1673893608656,1.0,1559.0,1558.9,21.96051228]
[1673893610529,2.92400002,1559.0,1558.9,21.96051228]
[1673893610942,4.35773972,1559.0,1558.9,19.24184207]
[1673893611522,2.92400002,1559.0,1558.9,19.24184207]
[1673893618726,1.0,1559.0,1558.9,19.24184207]
[1673893620098,1.95671732,1559.0,1558.9,19.24184207]
[1673893620308,2.92488908,1559.0,1558.9,19.24184207]
[1673893620781,4.35862878,1559.0,1558.9,19.24184207]
[1673893620951,2.92488908,1559.0,1558.9,19.24184207]
[1673893621180,4.98553449,1559.0,1558.8,19.24482]
[1673893621381,0.95671732,1558.9,1558.8,19.24482]
[1673893621740,1.92512005,1558.9,1558.8,19.24482]
[1673893622861,1.92512005,1558.9,1558.8,12.82983]
[1673893623091,3.35885975,1558.9,1558.8,6.41486]
[1673893623772,3.36382734,1558.9,1558.8,6.41486]
[1673893624033,3.9912529,1558.9,1558.8,6.41486]
[1673893624453,3.991188,1558.9,1558.8,6.41486]
[1673893625061,2.5574483,1558.9,1558.8,6.41486]
[1673893627068,2.5574483,1558.9,1558.8,12.83005]
[1673893627722,1.93002274,1558.9,1558.8,19.24524]
[1673893628876,3.39535971,1559.0,1558.8,21.34621473]
[1673893629047,1.96162001,1559.0,1558.8,21.78669063]
[1673893629252,1.96162001,1559.0,1558.9,5.65866906]
[1673893629499,1.96162001,1559.0,1558.9,24.90297906]
[1673893629500,2.93002863,1559.0,1558.9,24.90297906]
[1673893630847,2.93002863,1559.0,1558.9,23.5238093]
[1673893631561,1.96162001,1559.0,1558.9,23.5238093]
[1673893631776,1.96162001,1559.0,1558.9,19.24431]
[1673893631777,2.92986959,1559.0,1558.9,19.24431]
[1673893632249,4.36360929,1559.0,1558.9,19.24431]
[1673893632413,2.92986959,1559.0,1558.9,19.24431]
[1673893632618,4.36360929,1559.0,1558.9,19.24431]
[1673893633594,2.92986959,1559.0,1558.9,19.24431]
[1673893634770,4.36360929,1559.0,1558.9,6.41477]
[1673893635776,3.40198928,1559.0,1558.9,6.41477]
[1673893640252,3.40198928,1559.0,1558.9,24.647792]
[1673893640253,2.92979249,1559.0,1558.9,24.647792]
[1673893640620,2.92979249,1559.0,1558.9,25.26837357]
[1673893643669,2.92979249,1559.0,1558.9,23.26837357]
[1673893644704,1.96154291,1559.0,1558.9,23.26837357]
[1673893645179,2.93000486,1559.0,1558.9,23.26837357]
[1673893646017,1.96154291,1559.0,1558.9,23.26837357]
[1673893646586,1.0,1559.0,1558.9,23.26837357]
[1673893647994,1.0,1559.0,1558.9,27.7262305]
[1673893647995,0.99707259,1559.0,1558.9,27.7262305]
[1673893648203,0.99707259,1559.0,1558.9,33.22668692]
[1673893648538,0.99707259,1559.0,1558.9,31.78766898]
[1673893648921,0.99707259,1559.0,1558.9,28.28766898]
[1673893649397,0.99707259,1559.0,1558.9,27.32981205]
[1673893650745,0.99707259,1559.0,1558.9,26.26837357]
[1673893651486,0.99707259,1559.0,1558.9,25.647792]
[1673893654699,1.9586155,1559.0,1558.9,19.24431]
[1673893654907,4.36066409,1559.0,1558.9,19.24431]
[1673893655247,3.39912118,1559.0,1558.9,19.24431]
[1673893656259,3.39912118,1559.0,1558.9,6.41477]
[1673893656470,5.30954948,1559.0,1558.9,6.41477]
[1673893656741,4.64556826,1559.0,1558.9,6.41477]
[1673893657854,6.087371,1559.0,1558.9,6.41477]
[1673893660338,4.1769427,1559.0,1558.9,12.82954]
[1673893660484,3.40718422,1559.0,1558.9,12.82954]
[1673893661633,4.36828513,1559.0,1558.9,12.82954]
[1673893661846,3.40718422,1559.0,1558.9,12.82954]
[1673893662066,4.36830899,1559.0,1558.9,19.24431]
[1673893663781,3.40718422,1559.0,1558.9,19.24431]
[1673893663998,3.40718422,1559.0,1558.9,12.82954]
[1673893664493,4.36832103,1559.0,1558.9,19.24431]
[1673893666811,2.92651829,1559.0,1558.9,19.24431]
[1673893670462,4.36832103,1559.0,1558.9,12.82954]
[1673893670730,4.99630469,1559.0,1558.9,6.41098022]
[1673893670895,4.03505915,1559.0,1558.8,12.8298]
[1673893671107,3.37140919,1558.9,1558.8,19.24478]
[1673893671348,2.41011163,1558.9,1558.8,19.24478]
[1673893671569,3.37142457,1558.9,1558.8,19.24478]
[1673893672096,1.92962183,1558.9,1558.8,19.24478]
[1673893674883,0.96131294,1558.9,1558.8,19.24478]
[1673893675120,1.92938214,1558.9,1558.8,19.24478]
[1673893675344,1.92938247,1558.9,1558.8,19.24478]
[1673893676082,1.95838553,1559.0,1558.8,25.48300661]
[1673893676245,1.95838553,1559.0,1558.8,23.80029947]
[1673893676450,1.95838553,1559.0,1558.8,24.8618821]
[1673893676667,1.95838553,1559.0,1558.8,23.80029947]
[1673893683531,4.36828785,1559.0,1558.8,23.80029947]
[1673893683743,3.40018827,1559.0,1558.8,23.80029947]
[1673893684788,1.95838553,1559.0,1558.8,23.80029947]
[1673893685049,4.36811616,1559.0,1558.8,23.80029947]
[1673893685218,1.95838553,1559.0,1558.8,23.80029947]
[1673893685415,4.36815528,1559.0,1558.8,23.80029947]
[1673893685626,3.40018827,1559.0,1558.8,23.80029947]
[1673893685854,3.40018827,1559.0,1558.8,19.24478]
[1673893686314,1.92918187,1558.9,1558.8,19.24478]
[1673893689944,1.92918187,1558.9,1558.8,19.86652404]
[1673893690315,1.95838553,1559.0,1558.8,20.92905579]
[1673893690625,1.95838553,1559.0,1558.8,20.30732101]
[1673893690837,1.95838553,1559.0,1558.8,25.70642428]
[1673893694804,4.36661625,1559.0,1558.8,25.70642428]
[1673893695030,1.95838553,1559.0,1558.8,25.70642428]
[1673893701223,1.95838553,1559.0,1558.8,20.30732101]
[1673893701432,4.36526706,1559.0,1558.8,20.30732101]
[1673893701765,3.40018827,1559.0,1558.8,20.30732101]
[1673893702546,1.92703734,1558.9,1558.8,19.24478]
[1673893702760,1.95838553,1559.0,1558.8,20.92904869]
[1673893703020,1.95838553,1559.0,1558.8,25.91669386]
[1673893705911,4.36652901,1559.0,1558.8,20.30741782]
[1673893706132,3.40018827,1559.0,1558.8,20.30741782]
[1673893706650,0.96131294,1558.9,1558.8,20.30741782]
[1673893707018,3.40018827,1559.0,1558.8,20.92908877]
[1673893707177,3.40018827,1559.0,1558.8,20.30742984]
[1673893708696,1.95838553,1559.0,1558.8,25.85454399]
[1673893708911,1.95838553,1559.0,1558.8,27.33454399]
[1673893709871,1.95838553,1559.0,1558.9,2.62168781]
[1673893710006,2.92534606,1559.0,1558.9,19.86599781]
[1673893710753,2.92534606,1559.0,1558.9,19.86598484]
[1673893711222,2.92534606,1559.0,1558.9,19.24431]
[1673893712697,2.92534606,1559.0,1558.9,19.86614905]
[1673893715173,2.92534606,1559.0,1558.9,19.24431]
[1673893715407,2.92534606,1559.0,1558.9,19.82647367]
[1673893718673,4.36640306,1559.0,1558.9,19.24431]
[1673893719434,4.36668451,1559.0,1558.9,19.24431]
[1673893719649,3.40583586,1559.0,1558.9,19.24431]
[1673893720360,4.36653859,1559.0,1558.9,19.24431]
[1673893720737,3.40583586,1559.0,1558.9,19.24431]
[1673893722369,4.36679496,1559.0,1558.9,19.24431]
[1673893722527,2.92499222,1559.0,1558.9,19.82672985]
[1673893723750,4.36679496,1559.0,1558.9,19.24431]
[1673893724433,4.36679496,1559.0,1558.9,19.8267185]
[1673893724434,2.92499222,1559.0,1558.9,19.8267185]
[1673893726790,2.92499222,1559.0,1558.9,20.8601405]
[1673893726955,2.92499222,1559.0,1558.9,23.32831166]
[1673893727167,2.92499222,1559.0,1558.9,24.36173366]
[1673893728946,2.92499222,1559.0,1558.9,20.8601405]
[1673893729482,4.34930363,1559.0,1558.9,6.41477]
[1673893729695,5.31634266,1559.0,1558.9,6.41477]
[1673893729919,3.87446142,1559.0,1558.8,12.84124183]
[1673893730251,1.04559838,1558.8,1558.7,19.70562218]
[1673893730471,3.44867685,1558.8,1558.7,20.28826019]
[1673893730623,4.41563738,1558.8,1558.7,20.28826019]
[1673893730827,2.97378741,1558.8,1558.7,19.70562218]
[1673893731242,2.97378741,1558.8,1558.7,20.28809653]
[1673893731460,1.93178741,1558.8,1558.7,20.2880913]
[1673893731716,1.97204142,1558.8,1558.7,20.2880913]
[1673893732315,1.97204142,1558.8,1558.7,19.70562218]
[1673893733084,1.97204142,1558.8,1558.7,20.28794522]
[1673893733301,0.00359838,1558.8,1558.7,27.73650771]
[1673893737710,0.00359838,1558.8,1558.7,31.52951311]
[1673893737926,0.00359838,1558.8,1558.7,32.48737004]
[1673893738460,0.00359838,1558.8,1558.7,31.52951311]
[1673893738657,0.00359838,1558.8,1558.7,28.69436464]
[1673893740287,0.00359838,1558.8,1558.7,27.73650771]
[1673893744268,0.00359838,1558.8,1558.7,27.73650771]
[1673893744578,0.00359838,1558.8,1558.7,33.43236464]
[1673893744812,0.00359838,1558.8,1558.7,37.87138258]
[1673893746098,0.00359838,1558.8,1558.7,34.37138258]
[1673893747114,0.00359838,1558.8,1558.7,38.77971477]
[1673893747941,1.95830109,1559.0,1558.8,2.0]
[1673893748151,0.99707259,1559.0,1558.9,25.65908]
[1673893748302,1.95830109,1559.0,1558.9,25.65908]
[1673893748728,2.96599888,1559.0,1558.9,25.65908]
[1673893748938,2.96599888,1559.0,1558.9,28.95183808]
[1673893749380,1.95830109,1559.0,1558.9,28.95183808]
[1673893750000,2.96597333,1559.0,1558.9,28.95183808]
[1673893750633,1.95830109,1559.0,1558.9,28.95183808]
[1673893750878,2.96595168,1559.0,1558.9,28.95183808]
[1673893752368,1.95830109,1559.0,1558.9,28.95183808]
[1673893752588,0.99707259,1559.0,1558.9,28.95183808]
[1673893752930,1.95830109,1559.0,1558.9,28.95183808]
[1673893753138,2.96592733,1559.0,1558.9,28.95183808]
[1673893754088,0.99707259,1559.0,1558.9,29.53326369]
[1673893754516,0.99707259,1559.0,1558.9,38.56850593]
[1673893754839,0.99308291,1559.0,1558.9,51.79825347]
[1673893755196,0.9612285,1559.3,1558.9,51.79825347]
[1673893755349,0.9612285,1559.4,1559.2,1.238]
[1673893755554,0.9612285,1559.4,1559.3,25.65252]
[1673893755994,2.40307847,1559.4,1559.3,25.65252]
[1673893756348,2.40307847,1559.4,1559.3,28.65252]
[1673893756533,2.40307847,1559.4,1559.3,29.67613424]
[1673893756730,1.9176341,1559.4,1559.3,29.67613424]
[1673893757564,0.9612285,1559.4,1559.3,29.67613424]
[1673893759332,1.9164495,1559.4,1559.3,29.67613424]
[1673893759593,0.9612285,1559.4,1559.3,29.67613424]
[1673893760194,2.40307847,1559.5,1559.3,29.67613424]
[1673893760388,0.9612285,1559.5,1559.4,2.96761342]
[1673893760597,0.9612285,1559.5,1559.4,19.23816]
[1673893760858,1.91610572,1559.5,1559.4,19.23816]
[1673893761387,3.43989432,1559.6,1559.4,19.23816]
[1673893761388,2.49069452,1559.6,1559.4,19.23816]
[1673893761541,1.04884455,1559.6,1559.4,19.23816]
[1673893761753,3.44559182,1559.6,1559.4,22.20565042]
[1673893761958,2.49069452,1559.6,1559.4,22.20565042]
[1673893762229,3.09153575,1559.6,1559.4,22.20565042]
[1673893762759,1.64968578,1559.6,1559.4,22.20565042]
[1673893765221,0.68845728,1559.6,1559.4,22.20565042]
[1673893765484,0.68845728,1559.6,1559.5,21.45749504]
[1673893766966,0.68845728,1559.6,1559.5,24.95749504]
[1673893767110,0.68845728,1559.6,1559.5,26.75022464]
[1673893767502,0.68845728,1559.6,1559.5,29.75022464]
[1673893767654,0.68845728,1559.6,1559.5,26.25022464]
[1673893768816,0.68845728,1559.6,1559.5,25.01422464]
[1673893769629,0.68845728,1559.6,1559.5,24.45749504]
[1673893770721,0.68845728,1559.6,1559.5,27.73028182]
[1673893772295,0.68845728,1559.6,1559.5,39.21728182]
[1673893772532,0.68845728,1559.6,1559.5,40.00401142]
[1673893773160,0.68845728,1559.6,1559.5,39.44728182]
[1673893773734,0.68845728,1559.6,1559.5,40.00401142]
[1673893775155,0.68845728,1559.6,1559.5,36.50401142]
[1673893775328,0.68845728,1559.6,1559.5,40.00401142]
[1673893775681,0.08533992,1559.8,1559.6,8.749]
[1673893776038,0.08533992,1559.8,1559.7,40.77960678]
[1673893776354,0.08533992,1559.8,1559.7,34.03060678]
[1673893779500,0.08533992,1559.8,1559.7,30.75782]
[1673893779655,0.08533992,1559.8,1559.7,28.64592]
[1673893782710,0.08533992,1559.8,1559.7,22.23444]
[1673893792964,1.04656842,1559.8,1559.7,22.23444]
[1673893793112,0.08533992,1559.8,1559.7,22.23444]
[1673893793483,3.80718989,1559.8,1559.5,12.8242]
[1673893793703,3.80718989,1559.8,1559.5,6.41208]
[1673893793704,4.21616787,1559.7,1559.5,6.41208]
[1673893794012,1.91257524,1559.6,1559.5,6.41208]
[1673893794372,2.40050459,1559.6,1559.5,6.41208]
[1673893794625,3.35522464,1559.6,1559.4,12.82496]
[1673893794846,2.40129788,1559.6,1559.4,12.82496]
[1673893795376,3.96878751,1559.6,1559.4,12.72496]
[1673893795683,0.95944791,1559.5,1559.4,12.72496]
[1673893795840,0.95944791,1559.5,1559.4,15.72496]
[1673893796506,3.01411923,1559.6,1559.4,15.72496]
[1673893796699,1.91410792,1559.5,1559.4,15.72496]
[1673893796906,1.91410792,1559.5,1559.4,9.31244]
[1673893797154,1.35632583,1559.5,1559.4,9.31244]
[1673893797363,2.31098584,1559.5,1559.4,9.31244]
[1673893798843,3.75283581,1559.5,1559.4,6.31244]
[1673893800465,4.23403581,1559.5,1559.4,6.31244]
[1673893802952,3.83715789,1559.5,1559.4,6.31244]
[1673893803949,3.83715789,1559.5,1559.3,19.23862]
[1673893804165,2.88249788,1559.5,1559.3,19.23862]
[1673893804512,1.91438482,1559.4,1559.3,12.82567]
[1673893805826,0.95944791,1559.4,1559.3,12.82567]
[1673893806074,1.91438482,1559.4,1559.3,12.82567]
[1673893806452,0.95944791,1559.4,1559.3,12.82567]
[1673893806714,1.91438482,1559.4,1559.3,12.82567]
[1673893807090,4.11049788,1559.5,1559.3,12.82567]
[1673893807298,6.32051263,1559.5,1559.3,12.82567]
[1673893807557,4.87866266,1559.5,1559.3,12.82567]
[1673893808346,6.32051263,1559.5,1559.3,12.82567]
[1673893808623,4.87866266,1559.5,1559.3,12.82567]
[1673893809227,6.32051263,1559.5,1559.3,12.82567]
[1673893810044,4.11049788,1559.5,1559.3,19.2388]
[1673893810275,1.44064791,1559.5,1559.3,19.2388]
[1673893810714,0.4812,1559.5,1559.3,19.2388]
[1673893811047,10.69889788,1559.6,1559.3,19.2388]
[1673893813524,0.95944791,1559.5,1559.3,19.2388]
[1673893813728,1.91356941,1559.5,1559.3,19.2388]
[1673893814170,0.95944791,1559.5,1559.3,19.2388]
[1673893814518,0.95944791,1559.5,1559.3,22.612398]
[1673893814693,10.69889788,1559.6,1559.3,22.612398]
[1673893814895,2.40129788,1559.6,1559.3,22.612398]
[1673893815130,0.95944791,1559.6,1559.3,22.612398]
[1673893815546,1.91360359,1559.6,1559.3,22.612398]
[1673893816385,3.35545356,1559.6,1559.3,22.612398]
[1673893817413,3.35545356,1559.6,1559.4,2.2612398]
[1673893817619,0.95944791,1559.6,1559.5,19.23693]
[1673893818517,1.91386232,1559.6,1559.5,19.23693]
[1673893818884,3.35571229,1559.6,1559.5,19.23693]
[1673893819874,1.91386232,1559.6,1559.5,19.23693]
[1673893820406,3.35571229,1559.6,1559.5,19.23693]
[1673893820891,2.39626438,1559.6,1559.5,19.23693]
[1673893821312,2.40145341,1559.6,1559.5,19.23693]
[1673893821525,3.35586782,1559.6,1559.5,19.23693]
[1673893821735,1.91401785,1559.6,1559.5,19.23693]
[1673893821948,3.35586782,1559.6,1559.5,19.23693]
[1673893823814,3.29567593,1559.6,1559.5,19.23693]
[1673893825312,2.39626438,1559.6,1559.5,19.23693]
[1673893825662,2.86484271,1559.6,1559.4,6.4125]
[1673893825965,2.86484271,1559.6,1559.2,8.0838]
[1673893825966,2.39439166,1559.5,1559.3,6.41294]
[1673893826184,2.39439166,1559.5,1559.3,12.82588]
[1673893826343,2.39439166,1559.5,1559.3,19.23884]
[1673893826552,0.95441441,1559.4,1559.3,19.23884]
[1673893827000,1.43997725,1559.4,1559.3,19.23884]
[1673893827186,1.43997725,1559.4,1559.3,12.82588]
[1673893827743,1.87045925,1559.4,1559.1,6.4138]
[1673893827964,6.6236409,1559.3,1558.9,30.22614366]
[1673893828123,9.57805531,1559.2,1558.9,30.22614366]
[1673893828490,2.39484023,1559.1,1558.9,0.09614366]
[1673893828703,1.28148402,1559.0,1558.9,0.09614366]
[1673893828913,2.23589843,1559.0,1558.9,0.09614366]
[1673893829153,1.28148402,1559.0,1558.9,0.09614366]
[1673893829707,1.28148402,1559.0,1558.7,6.51544584]
[1673893829952,1.92172582,1559.1,1558.7,14.93084584]
[1673893830129,4.82885412,1559.0,1558.7,0.10006584]
[1673893830335,2.91842582,1559.0,1558.7,0.10006584]
[1673893830575,1.04560052,1558.9,1558.7,0.10006584]
[1673893830798,1.478,1559.0,1558.7,0.10006584]
[1673893831013,0.1478,1558.9,1558.7,0.10006584]
[1673893831213,13.0867026,1559.1,1558.7,12.93117584]
[1673893831214,3.39972582,1559.1,1558.7,12.93117584]
[1673893831428,1.04481048,1559.0,1558.7,19.34677584]
[1673893832701,3.39972582,1559.1,1558.7,19.34677584]
[1673893833766,3.39972582,1559.1,1558.7,22.84677584]
[1673893833767,0.95913871,1559.1,1558.7,22.84677584]
[1673893833908,0.95913871,1559.1,1558.8,2.0]
[1673893834119,3.9526068,1559.2,1558.9,12.82954]
[1673893834448,0.95913871,1559.1,1558.9,19.24431]
[1673893835124,2.90802773,1559.2,1558.9,19.24431]
[1673893835488,2.00347409,1559.1,1558.9,19.24431]
[1673893835696,0.95913871,1559.1,1558.9,19.24431]
[1673893835938,2.39956453,1559.1,1558.9,12.82954]
[1673893836146,4.17752952,1559.1,1558.9,12.82954]
[1673893836384,3.13314826,1559.1,1558.9,12.82954]
[1673893836878,1.69272244,1559.1,1558.9,12.82954]
[1673893837212,0.95913871,1559.1,1558.9,12.82954]
[1673893837436,2.00320385,1559.1,1558.9,12.82954]
[1673893838167,4.37202773,1559.2,1558.9,12.82954]
[1673893838856,4.37202773,1559.2,1558.9,19.24431]
[1673893839071,2.93160191,1559.2,1558.9,19.24431]
[1673893839293,2.45030191,1559.2,1558.9,19.24431]
[1673893840054,0.98630191,1559.2,1558.9,19.24431]
[1673893840364,0.98630191,1559.2,1558.9,21.81139318]
[1673893841069,0.0271632,1559.2,1558.9,21.81139318]
[1673893841427,0.98630191,1559.2,1558.9,21.81139318]
[1673893841579,2.03007789,1559.2,1558.9,21.81139318]
[1673893841789,0.98630191,1559.2,1558.9,21.81139318]
[1673893842633,0.98630191,1559.2,1558.9,19.24431]
[1673893842844,0.95913871,1559.1,1558.9,19.24431]
[1673893843379,2.42672773,1559.2,1558.9,19.24431]
[1673893843572,0.98630191,1559.2,1558.9,19.24431]
[1673893848160,0.0271632,1559.2,1558.9,19.24431]
[1673893849150,2.91833871,1559.3,1558.9,25.31139318]
[1673893849352,2.91833871,1559.3,1558.9,21.81139318]
[1673893850346,2.91833871,1559.3,1558.9,21.80908129]
[1673893850505,4.35876453,1559.3,1558.9,21.80908129]
[1673893851367,3.87756453,1559.3,1558.9,21.80908129]
[1673893851807,0.95913871,1559.3,1559.1,12.8279]
[1673893851972,2.00230583,1559.3,1559.1,19.24185]
[1673893853463,3.44273165,1559.3,1559.1,19.24185]
[1673893853803,2.39956453,1559.3,1559.1,19.24185]
[1673893853976,0.95913871,1559.3,1559.1,19.24185]
[1673893854435,2.00243529,1559.3,1559.1,19.24185]
[1673893854981,3.44286111,1559.3,1559.1,19.24185]
[1673893855181,0.95913871,1559.3,1559.1,12.8279]
[1673893855392,1.99239497,1559.3,1559.1,12.8279]
[1673893855619,3.45998399,1559.3,1559.1,19.24185]
[1673893855830,2.37672773,1559.3,1559.1,19.24185]
[1673893857128,1.46758902,1559.3,1559.1,19.24185]
[1673893857447,1.08147877,1559.2,1559.1,19.24185]
[1673893858492,1.08147877,1559.2,1559.1,6.41395]
[1673893859016,4.45949609,1559.3,1559.1,6.41395]
[1673893859187,1.08147877,1559.2,1559.1,6.41395]
[1673893861005,2.52190459,1559.2,1559.1,6.41395]
[1673893861859,1.08147877,1559.2,1559.1,6.41395]
[1673893862850,1.44042582,1559.2,1559.1,6.41395]
[1673893863068,2.52190459,1559.2,1559.1,6.41395]
[1673893865159,1.44042582,1559.2,1559.1,6.41395]
[1673893866131,1.43831305,1559.2,1559.1,6.41395]
[1673893866959,3.34874135,1559.2,1559.1,6.41395]
[1673893867284,3.34874135,1559.2,1559.1,8.33819]
[1673893867496,0.9612376,1559.3,1559.1,24.48640569]
[1673893867728,2.04532083,1559.3,1559.2,8.50786968]
[1673893867931,0.9612376,1559.3,1559.2,37.72748968]
[1673893868179,0.9612376,1559.4,1559.2,42.39266706]
[1673893868695,0.9612376,1559.4,1559.3,21.23939]
[1673893868904,1.9104283,1559.5,1559.3,21.23939]
[1673893869121,1.9104283,1559.4,1559.3,19.23939]
[1673893869340,1.08407322,1559.4,1559.3,19.23939]
[1673893869868,4.29846367,1559.5,1559.3,19.23939]
[1673893871229,5.38253689,1559.5,1559.3,19.23939]
[1673893871441,1.08407322,1559.4,1559.3,19.23939]
[1673893871812,1.9104283,1559.5,1559.3,19.23939]
[1673893872406,4.29846367,1559.5,1559.3,19.23939]
[1673893872709,2.04460482,1559.4,1559.3,19.23939]
[1673893872916,1.08407322,1559.4,1559.3,19.23939]
[1673893873703,4.29846367,1559.5,1559.3,19.23939]
[1673893873928,2.99450152,1559.4,1559.3,19.23939]
[1673893874280,4.29846367,1559.5,1559.1,16.0141]
[1673893874438,0.96043419,1559.3,1559.2,6.41354]
[1673893874886,2.04450741,1559.3,1559.2,19.24062]
[1673893875100,0.96043419,1559.3,1559.2,19.24062]
[1673893875852,2.40108639,1559.4,1559.2,23.14608068]
[1673893876227,2.40108639,1559.4,1559.3,2.0]
[1673893876432,2.04348836,1559.4,1559.3,21.23939]
[1673893876783,2.52370637,1559.4,1559.3,19.23939]
[1673893876955,1.4406522,1559.4,1559.3,19.23939]
[1673893877533,2.52370637,1559.4,1559.3,19.23939]
[1673893877700,1.4406522,1559.4,1559.3,19.23939]
[1673893878376,2.40096583,1559.4,1559.3,19.23939]
[1673893879322,3.48402,1559.4,1559.3,19.23939]
[1673893879524,2.0433678,1559.4,1559.3,19.23939]
[1673893879705,0.96031363,1559.4,1559.3,19.23939]
[1673893881427,2.0433678,1559.4,1559.3,19.23939]
[1673893881799,0.96031363,1559.4,1559.3,19.23939]
[1673893882860,2.0433678,1559.4,1559.3,19.23939]
[1673893883071,0.96031363,1559.4,1559.3,19.23939]
[1673893883415,1.4406522,1559.4,1559.3,19.23939]
[1673893884023,2.40080412,1559.4,1559.3,19.23939]
[1673893884234,2.40080398,1559.4,1559.3,19.23939]
[1673893884439,1.4406522,1559.4,1559.3,19.23939]
[1673893884678,2.52370637,1559.4,1559.3,19.23939]
[1673893884846,1.4406522,1559.4,1559.3,19.23939]
[1673893885303,3.48388113,1559.4,1559.3,19.23939]
[1673893885490,2.40082696,1559.4,1559.3,19.23939]
[1673893885682,0.96017476,1559.4,1559.3,19.23939]
[1673893886543,2.04322893,1559.4,1559.3,19.23939]
[1673893886779,0.96017476,1559.4,1559.3,19.23939]
[1673893889040,2.40082696,1559.4,1559.3,19.23939]
[1673893889246,2.52370637,1559.4,1559.3,19.23939]
[1673893889457,1.4406522,1559.4,1559.3,19.23939]
[1673893892873,3.3510805,1559.4,1559.3,19.23939]
[1673893893422,1.4406522,1559.4,1559.3,19.23939]
[1673893895707,3.3510805,1559.4,1559.3,19.23939]
[1673893895865,2.52370637,1559.4,1559.3,19.23939]
[1673893896340,1.4406522,1559.4,1559.3,19.23939]
[1673893896706,3.3510805,1559.4,1559.3,19.23939]
[1673893898652,2.52370637,1559.4,1559.3,19.23939]
[1673893899368,1.4406522,1559.4,1559.3,19.23939]
[1673893901239,3.48434613,1559.4,1559.3,19.23939]
[1673893901430,3.48435777,1559.4,1559.3,19.23939]
[1673893901644,2.4013036,1559.4,1559.3,19.23939]
[1673893902232,2.52370637,1559.4,1559.3,19.23939]
[1673893902375,1.4406522,1559.4,1559.3,19.23939]